bitfinex-derivatives/quotes_SOLF0:USTF0_20250518
["timestamp","ask_amount","ask_price","bid_price","bid_amount"]
[1747527117787,6.0058,166.44,166.39,60.16]
[1747527117989,64.0401,166.46,166.39,60.16]
[1747527118192,64.0401,166.46,166.42,6.0062]
[1747527118392,6.0054,166.45,166.42,6.0062]
[1747527118593,6.0054,166.45,166.39,60.16]
[1747527118793,6.0054,166.45,166.41,6.0066]
[1747527118984,64.0401,166.46,166.41,6.0066]
[1747527118985,6.0057,166.44,166.41,6.0066]
[1747527119592,6.0054,166.45,166.41,6.0066]
[1747527119900,64.0401,166.46,166.39,60.16]
[1747527120091,64.0401,166.46,166.36,120.28]
[1747527120396,65.925,166.46,166.36,120.28]
[1747527121397,65.925,166.46,166.41,6.0066]
[1747527122599,6.0057,166.44,166.41,6.0066]
[1747527122800,65.925,166.46,166.36,120.28]
[1747527123000,64.0401,166.46,166.36,120.28]
[1747527123399,3.9201,166.46,166.36,120.28]
[1747527123997,5.9216,166.46,166.39,6.0074]
[1747527124995,5.9216,166.46,166.36,60.16]
[1747527125199,5.9216,166.46,166.33,60.18]
[1747527125503,6.0082,166.37,166.34,6.0091]
[1747527125798,120.34,166.39,166.32,5.58900401]
[1747527125996,6.0083,166.37,166.32,5.58900401]
[1747527126195,6.0083,166.37,166.33,6.0096]
[1747527126600,6.0083,166.37,166.32,5.58900401]
[1747527126801,64.1326,166.38,166.32,5.58900401]
[1747527127302,70.1406,166.38,166.33,6.0094]
[1747527127507,64.1326,166.38,166.32,5.58900401]
[1747527128705,64.1326,166.38,166.3,127.79200534]
[1747527128706,64.1326,166.38,166.34,6.009]
[1747527128905,70.1404,166.38,166.3,120.34]
[1747527130111,6.0082,166.37,166.3,120.34]
[1747527130406,64.1326,166.38,166.3,120.34]
[1747527130910,70.1407,166.38,166.3,120.34]
[1747527131102,64.1326,166.38,166.3,120.34]
[1747527131303,64.1326,166.38,166.34,6.0092]
[1747527131503,64.1326,166.38,166.3,120.34]
[1747527132207,64.1326,166.38,166.3,60.18]
[1747527133917,66.0196,166.38,166.3,60.18]
[1747527134111,6.0089,166.36,166.32,6.0099]
[1747527134719,66.0196,166.38,166.27,60.2]
[1747527137619,6.0096,166.33,166.27,60.2]
[1747527137917,60.06,166.33,166.27,60.2]
[1747527138114,66.0698,166.33,166.27,60.2]
[1747527138309,66.0698,166.33,166.25,60.08]
[1747527138620,6.0095,166.34,166.3,6.0105]
[1747527138827,120.06,166.35,166.24,60.04]
[1747527139116,120.06,166.35,166.25,60.02]
[1747527139713,120.06,166.35,166.24,60.04]
[1747527139919,6.0102,166.32,166.28,6.0114]
[1747527143722,6.0104,166.31,166.28,6.0114]
[1747527143919,6.0104,166.31,166.27,6.0117]
[1747527144626,6.0101,166.32,166.28,6.0114]
[1747527145025,120.06,166.35,166.28,6.0114]
[1747527145223,6.0103,166.32,166.28,6.0114]
[1747527147030,6.0104,166.31,166.28,6.0114]
[1747527150729,6.0104,166.31,166.27,6.0117]
[1747527152026,60.04,166.35,166.24,60.04]
[1747527152231,120.1,166.34,166.21,120.1]
[1747527152529,6.0125,166.26,166.22,6.0136]
[1747527153427,6.0125,166.26,166.23,6.0132]
[1747527153633,120.16,166.28,166.21,60.06]
[1747527154036,6.0122,166.26,166.18,5.58900401]
[1747527154223,6.0122,166.26,166.18,125.92900401]
[1747527154530,6.0122,166.26,166.22,6.0133]
[1747527154731,6.0122,166.26,166.18,125.92900401]
[1747527155033,1.9993,166.27,166.21,6.0137]
[1747527155239,1.9993,166.27,166.18,65.66900401]
[1747527155535,6.0138,166.22,166.18,11.60380401]
[1747527156234,6.014,166.21,166.18,11.60380401]
[1747527156428,6.014,166.21,166.18,6.0148]
[1747527156935,120.38,166.23,166.15,60.08]
[1747527157435,120.38,166.23,166.16,6.0156]
[1747527157631,120.38,166.23,166.15,60.08]
[1747527157832,120.38,166.23,166.13,60.28]
[1747527158433,6.0146,166.2,166.16,6.0155]
[1747527158938,120.38,166.23,166.13,60.28]
[1747527159137,126.3935,166.23,166.13,60.28]
[1747527159430,60.08,166.23,166.13,60.28]
[1747527160136,6.0142,166.21,166.13,60.28]
[1747527160335,6.0142,166.21,166.12,60.08]
[1747527160635,6.0142,166.21,166.13,60.26]
[1747527160827,60.08,166.23,166.13,60.26]
[1747527161434,6.0139,166.22,166.19,6.0146]
[1747527161635,60.08,166.23,166.13,60.26]
[1747527162029,124.4718,166.26,166.13,60.26]
[1747527162224,64.1918,166.26,166.13,60.26]
[1747527162429,6.0133,166.23,166.2,6.0141]
[1747527162637,64.1918,166.26,166.18,60.26]
[1747527162940,64.1918,166.26,166.16,60.26]
[1747527163138,6.0142,166.21,166.16,60.26]
[1747527163739,6.0137,166.22,166.16,60.26]
[1747527164339,6.014,166.21,166.18,6.0149]
[1747527164638,64.1918,166.26,166.16,60.26]
[1747527164842,6.0143,166.21,166.17,6.0153]
[1747527165542,6.0137,166.22,166.18,6.015]
[1747527167542,6.0137,166.22,166.19,6.0147]
[1747527167737,6.0134,166.23,166.19,6.0147]
[1747527167942,64.1918,166.26,166.19,6.0147]
[1747527168440,64.1918,166.26,166.16,60.26]
[1747527169043,6.014,166.21,166.18,6.015]
[1747527169646,6.0137,166.22,166.19,6.0147]
[1747527172349,64.1918,166.26,166.16,60.26]
[1747527172647,64.1918,166.26,166.16,65.47285948]
[1747527172850,6.0129,166.24,166.16,65.47285948]
[1747527173150,64.1918,166.26,166.16,65.47285948]
[1747527173547,6.013,166.24,166.16,65.47285948]
[1747527174448,6.013,166.24,166.2,6.014]
[1747527174643,6.0126,166.25,166.16,65.47285948]
[1747527174951,124.5318,166.26,166.21,6.0137]
[1747527175351,6.0129,166.24,166.16,65.47285948]
[1747527175549,6.0129,166.24,166.21,6.0137]
[1747527176452,64.1918,166.26,166.16,65.47285948]
[1747527176847,60.08,166.26,166.19,5.21285948]
[1747527177050,8.0114,166.27,166.2,60.34]
[1747527177450,8.0114,166.27,166.24,6.0128]
[1747527178047,8.0114,166.27,166.25,6.0125]
[1747527178655,1.9993,166.27,166.25,6.0125]
[1747527178955,60.2,166.32,166.23,60.2]
[1747527179155,6.0109,166.3,166.23,60.2]
[1747527179453,6.0109,166.3,166.24,60.3]
[1747527179747,60.2,166.32,166.24,60.3]
[1747527179949,60.2,166.32,166.23,6.0129]
[1747527180351,6.0121,166.27,166.2,120.5]
[1747527180552,60.3,166.29,166.24,6.0129]
[1747527180749,60.3,166.29,166.2,120.5]
[1747527181052,6.0121,166.27,166.2,120.5]
[1747527181456,6.0121,166.27,166.23,6.0129]
[1747527181654,6.0121,166.27,166.2,120.5]
[1747527181855,60.3,166.29,166.2,120.5]
[1747527181856,6.0116,166.28,166.2,120.5]
[1747527182156,60.3,166.29,166.24,6.0125]
[1747527182351,6.0122,166.26,166.2,120.5]
[1747527182552,3.9286,166.28,166.2,120.5]
[1747527183257,6.012,166.27,166.24,6.0126]
[1747527183560,3.9286,166.28,166.2,120.5]
[1747527183759,64.1286,166.28,166.2,60.2]
[1747527183959,6.0133,166.23,166.2,66.214]
[1747527184157,66.1927,166.28,166.17,60.2]
[1747527184353,66.1927,166.28,166.17,120.5]
[1747527184961,6.0134,166.23,166.19,6.0144]
[1747527185155,66.1927,166.28,166.19,6.0144]
[1747527185560,6.0136,166.23,166.19,6.0144]
[1747527185760,66.1927,166.28,166.19,6.0144]
[1747527186062,6.0136,166.23,166.19,6.0144]
[1747527186460,6.0136,166.23,166.2,6.0143]
[1747527186656,66.1927,166.28,166.17,120.5]
[1747527186957,6.013,166.24,166.17,120.5]
[1747527187160,66.1927,166.28,166.17,120.5]
[1747527187560,66.1927,166.28,166.2,6.0141]
[1747527188057,6.0132,166.24,166.2,6.0141]
[1747527188655,6.0133,166.23,166.19,6.0145]
[1747527188862,66.1927,166.28,166.17,120.5]
[1747527189361,6.0138,166.22,166.18,6.0147]
[1747527189758,60.26,166.25,166.17,120.5]
[1747527189958,6.0134,166.23,166.19,6.0143]
[1747527190153,66.1927,166.28,166.17,120.5]
[1747527190354,60.24,166.27,166.17,120.5]
[1747527190560,6.0128,166.25,166.21,6.0138]
[1747527190761,60.24,166.27,166.17,120.5]
[1747527191065,6.0126,166.25,166.22,6.0136]
[1747527191258,6.0126,166.25,166.17,120.5]
[1747527191455,60.24,166.27,166.17,120.5]
[1747527191659,6.0129,166.24,166.2,6.0143]
[1747527191858,6.0129,166.24,166.18,4.92476092]
[1747527192161,6.0127,166.25,166.21,6.0137]
[1747527192461,60.24,166.27,166.21,6.0137]
[1747527192665,6.0131,166.24,166.21,6.0137]
[1747527193467,60.24,166.27,166.21,6.0137]
[1747527193660,60.24,166.27,166.2,6.0142]
[1747527193865,60.24,166.27,166.17,120.5]
[1747527194063,6.0129,166.24,166.17,120.5]
[1747527195467,60.24,166.27,166.17,60.2]
[1747527195668,60.24,166.27,166.17,120.46]
[1747527196061,6.0142,166.21,166.18,6.0148]
[1747527196467,60.2,166.24,166.17,120.46]
[1747527196669,6.0142,166.21,166.17,126.4753]
[1747527197468,6.0142,166.21,166.18,6.0149]
[1747527198172,60.2,166.24,166.19,6.0146]
[1747527198765,60.2,166.24,166.2,6.0143]
[1747527198973,60.2,166.24,166.17,120.46]
[1747527199468,6.0136,166.22,166.19,6.0145]
[1747527201572,60.2,166.24,166.17,66.2151]
[1747527202068,60.2,166.24,166.17,60.2]
[1747527202257,6.0146,166.2,166.17,60.2]
[1747527202463,60.26,166.23,166.16,6.0156]
[1747527203773,3.8613,166.22,166.16,6.0156]
[1747527204671,6.0147,166.19,166.16,6.0156]
[1747527204874,3.8613,166.22,166.15,11.60510401]
[1747527205174,6.0149,166.19,166.15,6.0161]
[1747527205566,6.0149,166.19,166.14,60.28]
[1747527205567,6.0145,166.2,166.14,60.28]
[1747527206078,6.0145,166.2,166.16,6.0154]
[1747527207073,6.0148,166.19,166.16,6.0154]
[1747527207373,3.8613,166.22,166.15,10.9604515]
[1747527207568,3.8613,166.22,166.15,4.9444515]
[1747527207772,6.0147,166.19,166.16,6.0155]
[1747527210082,6.0147,166.19,166.15,6.0159]
[1747527210382,6.0147,166.19,166.14,120.48]
[1747527210583,6.0147,166.19,166.16,6.0157]
[1747527210775,6.015,166.18,166.14,120.48]
[1747527210975,6.015,166.18,166.14,60.28]
[1747527212582,6.015,166.18,166.15,6.016]
[1747527212986,6.0148,166.19,166.14,60.28]
[1747527213790,6.0148,166.19,166.15,6.0159]
[1747527215089,6.0148,166.19,166.16,6.0157]
[1747527215382,3.8613,166.22,166.14,65.49285948]
[1747527215589,3.8613,166.22,166.18,6.0147]
[1747527216285,6.0138,166.22,166.16,60.26]
[1747527216987,6.0138,166.22,166.18,6.0148]
[1747527217186,6.014,166.21,166.18,6.0148]
[1747527217689,60.2,166.24,166.16,60.26]
[1747527217690,6.0138,166.22,166.19,6.0146]
[1747527218187,60.2,166.24,166.19,6.0146]
[1747527218394,6.014,166.21,166.19,6.0146]
[1747527219788,6.0137,166.22,166.19,6.0146]
[1747527220986,6.0134,166.23,166.2,6.0142]
[1747527221185,6.0134,166.23,166.16,60.26]
[1747527221495,6.0136,166.22,166.19,6.0145]
[1747527223393,60.2,166.24,166.16,60.26]
[1747527223591,60.12,166.25,166.16,60.26]
[1747527224295,6.0131,166.24,166.21,6.0137]
[1747527225792,6.0126,166.25,166.22,6.0135]
[1747527225994,3.8404,166.26,166.19,4.94172161]
[1747527226188,60.28,166.27,166.19,4.94172161]
[1747527226392,6.0119,166.27,166.2,60.12]
[1747527226597,71.36777987,166.3,166.2,60.12]
[1747527226794,8.064,166.28,166.25,6.0124]
[1747527226990,71.36777987,166.3,166.22,60.28]
[1747527227493,6.0114,166.29,166.25,6.0123]
[1747527228095,71.36777987,166.3,166.24,6.0127]
[1747527228398,71.36777987,166.3,166.22,60.28]
[1747527228898,60.28,166.3,166.22,60.28]
[1747527229197,6.0115,166.28,166.22,60.28]
[1747527229396,60.28,166.3,166.22,60.28]
[1747527229699,6.0112,166.29,166.22,60.28]
[1747527229898,3.8625,166.31,166.28,6.0114]
[1747527230791,9.8729,166.31,166.28,6.0114]
[1747527234096,3.8625,166.31,166.28,6.0114]
[1747527235002,9.8729,166.31,166.28,6.0114]
[1747527235300,9.8729,166.31,166.27,6.0116]
[1747527235700,9.8729,166.31,166.28,6.0113]
[1747527235898,3.8625,166.31,166.28,6.0113]
[1747527236499,60.06,166.33,166.26,60.06]
[1747527236895,1.8675,166.34,166.26,60.06]
[1747527237095,6.0096,166.33,166.29,6.0107]
[1747527237699,6.0093,166.34,166.26,60.06]
[1747527237894,120.12,166.36,166.26,65.27285948]
[1747527238095,60.06,166.36,166.26,65.27285948]
[1747527238298,6.0099,166.33,166.3,6.0106]
[1747527239303,6.01,166.32,166.3,6.0106]
[1747527239597,60.06,166.36,166.3,6.0106]
[1747527239901,6.0098,166.33,166.3,6.0106]
[1747527240103,60.06,166.36,166.28,60.02]
[1747527240704,60.06,166.36,166.28,66.0311]
[1747527241105,6.0103,166.32,166.28,66.0311]
[1747527241595,6.0103,166.32,166.29,6.011]
[1747527241797,6.0098,166.33,166.28,60.02]
[1747527242104,120.06,166.36,166.28,60.02]
[1747527242294,6.0093,166.34,166.31,6.0101]
[1747527242491,60.06,166.36,166.28,60.02]
[1747527242703,6.0086,166.36,166.29,5.21285948]
[1747527242900,6.0086,166.36,166.3,60.04]
[1747527243608,6.009,166.35,166.3,60.04]
[1747527244102,6.009,166.35,166.32,6.0097]
[1747527244705,6.0094,166.34,166.31,6.0101]
[1747527244906,3.9987,166.37,166.3,60.04]
[1747527245303,6.0098,166.33,166.3,66.0506]
[1747527246007,6.0094,166.34,166.31,6.0103]
[1747527246208,3.9987,166.37,166.3,60.04]
[1747527246708,3.9987,166.37,166.32,6.0098]
[1747527247494,6.0087,166.36,166.32,6.0098]
[1747527248006,6.0091,166.35,166.31,6.0102]
[1747527248308,3.9987,166.37,166.3,60.04]
[1747527248309,120.08,166.39,166.3,60.04]
[1747527248507,6.0087,166.36,166.33,6.0096]
[1747527249004,6.0087,166.36,166.32,6.0098]
[1747527249202,6.0087,166.36,166.3,60.04]
[1747527250313,6.0083,166.37,166.3,60.04]
[1747527250906,6.0086,166.36,166.3,60.04]
[1747527251210,6.0086,166.36,166.33,6.0094]
[1747527251804,6.0086,166.36,166.34,6.0092]
[1747527253209,6.0089,166.35,166.3,60.04]
[1747527253711,6.0087,166.36,166.33,6.0096]
[1747527253909,6.0087,166.36,166.3,60.04]
[1747527254311,6.0087,166.36,166.33,6.0093]
[1747527254721,60.04,166.39,166.3,60.04]
[1747527255010,5.9208,166.41,166.3,60.04]
[1747527255215,5.9208,166.41,166.32,5.21285948]
[1747527255512,5.9208,166.41,166.33,60.0]
[1747527255712,5.9208,166.41,166.34,60.02]
[1747527256311,6.0075,166.39,166.36,6.0082]
[1747527256506,3.9874,166.41,166.34,60.02]
[1747527256813,9.9942,166.41,166.38,6.0076]
[1747527257711,3.9874,166.41,166.34,60.02]
[1747527258415,3.9874,166.41,166.4,6.0071]
[1747527258806,3.9874,166.41,166.34,60.02]
[1747527259115,9.9941,166.41,166.34,60.02]
[1747527259517,3.9874,166.41,166.34,60.02]
[1747527259713,6.0071,166.4,166.38,6.0077]
[1747527260213,9.9943,166.41,166.38,6.0077]
[1747527260410,3.9874,166.41,166.34,60.02]
[1747527260718,9.9944,166.41,166.34,60.02]
[1747527262207,9.9944,166.41,166.38,6.0076]
[1747527262408,3.9874,166.41,166.34,60.02]
[1747527262607,120.0,166.45,166.4,6.0068]
[1747527263115,6.006,166.43,166.4,6.0068]
[1747527264209,6.0057,166.44,166.37,59.98]
[1747527264418,6.0057,166.44,166.38,59.96]
[1747527265917,5.7635,166.46,166.38,59.96]
[1747527266214,5.7635,166.46,166.4,6.0069]
[1747527267517,6.0059,166.44,166.38,59.96]
[1747527268518,6.0059,166.44,166.4,6.0068]
[1747527269120,6.0061,166.43,166.4,6.0068]
[1747527271320,6.0061,166.43,166.38,59.96]
[1747527271321,5.7635,166.46,166.38,59.96]
[1747527271526,5.7635,166.46,166.35,59.96]
[1747527271817,6.0077,166.39,166.36,6.0085]
[1747527273413,6.0078,166.38,166.35,125.9287]
[1747527273921,6.0076,166.39,166.36,6.0085]
[1747527274115,119.92,166.43,166.36,6.0085]
[1747527274421,6.0074,166.4,166.36,6.0085]
[1747527274625,119.92,166.43,166.36,6.0085]
[1747527274923,119.92,166.43,166.35,65.9688]
[1747527275123,6.0078,166.39,166.35,65.9688]
[1747527278024,6.0074,166.4,166.35,59.96]
[1747527278327,59.96,166.43,166.35,59.96]
[1747527278628,6.0071,166.41,166.37,6.0079]
[1747527278926,6.0071,166.41,166.35,59.96]
[1747527279124,59.96,166.43,166.35,59.96]
[1747527279425,6.0071,166.4,166.35,59.96]
[1747527281435,6.0071,166.4,166.37,6.008]
[1747527281642,59.96,166.43,166.35,59.96]
[1747527282235,6.0063,166.43,166.35,59.96]
[1747527282438,6.0063,166.43,166.39,6.0071]
[1747527282934,6.0064,166.42,166.39,6.0073]
[1747527284436,6.0064,166.42,166.4,6.007]
[1747527285636,6.0062,166.43,166.4,6.007]
[1747527286335,6.0057,166.44,166.41,6.0067]
[1747527286534,5.7635,166.46,166.38,59.96]
[1747527286740,5.7635,166.46,166.39,59.96]
[1747527287039,16.38138956,166.51,166.39,65.17285948]
[1747527287040,71.12853008,166.51,166.39,65.17285948]
[1747527287336,59.96,166.5,166.39,65.17285948]
[1747527287538,6.0043,166.48,166.45,6.0052]
[1747527288239,6.0043,166.48,166.46,6.0048]
[1747527288532,59.96,166.5,166.42,59.96]
[1747527288839,6.0046,166.47,166.42,59.96]
[1747527289231,6.0043,166.48,166.42,59.96]
[1747527289940,119.9,166.51,166.42,6.0061]
[1747527290238,125.11285948,166.51,166.42,6.0061]
[1747527290434,119.9,166.51,166.42,6.0061]
[1747527290739,6.0053,166.46,166.42,6.0061]
[1747527290941,119.9,166.51,166.42,6.0061]
[1747527292042,6.0056,166.45,166.42,6.0061]
[1747527292234,119.9,166.51,166.39,119.9]
[1747527292636,6.0058,166.44,166.39,119.9]
[1747527292841,6.0058,166.44,166.4,6.0068]
[1747527293235,6.0054,166.45,166.41,6.0064]
[1747527293433,6.0054,166.45,166.39,119.9]
[1747527294143,6.0054,166.45,166.39,59.96]
[1747527295941,6.0054,166.45,166.4,4.94895344]
[1747527296241,59.94,166.49,166.4,4.94895344]
[1747527296640,6.0045,166.48,166.45,6.0051]
[1747527297536,6.004,166.49,166.46,6.0049]
[1747527297938,76.79463008,166.53,166.43,64.88895344]
[1747527298140,59.94,166.52,166.43,64.88895344]
[1747527298439,6.0036,166.5,166.43,64.88895344]
[1747527298644,59.94,166.52,166.43,64.88895344]
[1747527299140,76.79463008,166.53,166.45,5.21285948]
[1747527299444,76.79463008,166.53,166.46,59.94]
[1747527299646,6.003,166.52,166.49,6.0037]
[1747527300438,65.6261,166.53,166.49,6.0037]
[1747527300641,65.6261,166.53,166.46,59.94]
[1747527300841,65.6261,166.53,166.43,119.88]
[1747527301239,65.6261,166.53,166.44,6.0054]
[1747527301446,65.6261,166.53,166.43,119.88]
[1747527301646,6.0041,166.49,166.43,119.88]
[1747527301846,65.6261,166.53,166.43,119.88]
[1747527302051,65.6261,166.53,166.44,4.94274418]
[1747527302249,125.5461,166.53,166.44,4.94274418]
[1747527302737,65.6261,166.53,166.44,10.15560366]
[1747527303148,6.0035,166.51,166.47,6.0044]
[1747527304046,6.0036,166.5,166.47,6.0044]
[1747527304254,65.6261,166.53,166.45,4.94274418]
[1747527304755,6.003,166.52,166.49,6.0037]
[1747527304944,3.7672,166.53,166.47,119.84]
[1747527305549,6.0028,166.52,166.49,6.0035]
[1747527305752,6.0028,166.52,166.47,119.84]
[1747527305945,6.0028,166.52,166.5,6.0035]
[1747527306146,3.7672,166.53,166.47,119.84]
[1747527306550,6.003,166.52,166.49,6.0036]
[1747527307252,3.7672,166.53,166.47,119.84]
[1747527308153,6.0036,166.5,166.47,125.8444]
[1747527308453,6.0036,166.5,166.47,119.84]
[1747527309054,6.0033,166.51,166.47,125.8445]
[1747527309352,3.7672,166.53,166.47,119.84]
[1747527310856,9.7698,166.53,166.49,6.0036]
[1747527312154,6.0028,166.52,166.49,6.0036]
[1747527312355,3.7672,166.53,166.47,119.84]
[1747527313253,6.003,166.52,166.49,6.0036]
[1747527313555,3.7672,166.53,166.47,119.84]
[1747527314554,9.7698,166.53,166.5,6.0032]
[1747527317060,3.7672,166.53,166.51,6.003]
[1747527317654,3.7672,166.53,166.5,6.0033]
[1747527318765,59.92,166.56,166.48,5.21285948]
[1747527319256,6.0026,166.53,166.5,6.0033]
[1747527319463,6.0026,166.53,166.48,5.21285948]
[1747527320563,6.0026,166.53,166.51,6.003]
[1747527320862,6.0023,166.54,166.51,6.003]
[1747527321356,59.92,166.56,166.48,5.21285948]
[1747527321561,1.96,166.58,166.48,5.21285948]
[1747527321962,6.0011,166.57,166.54,6.0017]
[1747527322866,6.0011,166.57,166.55,6.0015]
[1747527323363,6.0011,166.57,166.52,59.88]
[1747527323759,6.0011,166.57,166.54,6.0018]
[1747527323965,6.0011,166.57,166.52,59.88]
[1747527324761,69.7726,166.59,166.52,59.88]
[1747527324962,9.8926,166.59,166.52,59.88]
[1747527325162,9.8926,166.59,166.56,6.0011]
[1747527325669,9.8926,166.59,166.57,6.0009]
[1747527325868,9.8926,166.59,166.52,59.88]
[1747527326468,9.8926,166.59,166.56,6.001]
[1747527327566,61.9061,166.62,166.55,59.88]
[1747527327868,2.0261,166.62,166.56,59.88]
[1747527328070,5.9998,166.61,166.56,59.88]
[1747527329267,5.9998,166.61,166.58,6.0004]
[1747527329970,2.0261,166.62,166.56,65.881]
[1747527330165,2.0261,166.62,166.56,59.88]
[1747527331373,2.0261,166.62,166.56,65.8811]
[1747527331374,6.0005,166.59,166.56,65.8811]
[1747527333168,2.0261,166.62,166.56,59.88]
[1747527333471,2.0261,166.62,166.51,5.21285948]
[1747527333667,119.72,166.61,166.52,59.86]
[1747527333866,119.72,166.61,166.49,59.86]
[1747527334775,6.003,166.52,166.49,59.86]
[1747527334969,119.72,166.57,166.49,59.86]
[1747527335169,65.9021,166.56,166.49,59.86]
[1747527336571,6.0421,166.56,166.49,59.86]
[1747527336778,4.0492,166.56,166.49,59.86]
[1747527337276,10.0506,166.56,166.49,59.86]
[1747527337579,4.0492,166.56,166.49,59.86]
[1747527337778,10.0506,166.56,166.49,59.86]
[1747527338474,59.86,166.6,166.49,59.86]
[1747527338876,6.0003,166.59,166.49,59.86]
[1747527339179,59.86,166.6,166.49,59.86]
[1747527339377,6.0006,166.58,166.49,59.86]
[1747527339982,3.918,166.61,166.51,5.21285948]
[1747527340183,3.918,166.61,166.54,5.21285948]
[1747527340382,3.918,166.61,166.59,5.9999]
[1747527341082,3.918,166.61,166.55,59.86]
[1747527341083,3.918,166.61,166.6,5.9999]
[1747527341984,125.7431,166.68,166.59,59.86]
[1747527342486,125.7431,166.68,166.65,5.9981]
[1747527343579,6.0231,166.68,166.67,5.9974]
[1747527343885,1.9935,166.68,166.67,5.9974]
[1747527345096,11.16853008,166.69,166.68,5.997]
[1747527346697,1.9897,166.73,166.72,5.9956]
[1747527349491,61.9034,166.77,166.75,5.9943]
[1747527349687,5.21285948,166.82,166.71,59.84]
[1747527349688,59.84,166.81,166.71,59.84]
[1747527349897,61.9034,166.81,166.72,124.89285948]
[1747527350102,61.9034,166.81,166.78,5.9932]
[1747527350601,61.9034,166.81,166.77,5.9937]
[1747527351601,67.896,166.81,166.77,5.9937]
[1747527351999,2.0634,166.81,166.76,59.8]
[1747527352599,2.0634,166.81,166.79,5.9928]
[1747527352804,2.0634,166.81,166.76,59.8]
[1747527354101,2.0634,166.81,166.79,5.9928]
[1747527355303,59.8,166.8,166.67,518.5]
[1747527355495,59.8,166.8,166.71,5.21285948]
[1747527355697,59.8,166.8,166.72,59.8]
[1747527356804,5.9939,166.77,166.73,5.9951]
[1747527357000,59.8,166.8,166.72,59.8]
[1747527357405,5.9938,166.77,166.7,59.8]
[1747527358204,5.9943,166.76,166.72,5.9955]
[1747527358404,59.8,166.8,166.7,59.8]
[1747527358805,5.9938,166.77,166.7,59.8]
[1747527359506,59.8,166.8,166.7,59.8]
[1747527359507,5.9935,166.78,166.7,59.8]
[1747527359706,5.9935,166.78,166.75,50.0]
[1747527360603,5.9932,166.79,166.75,50.0]
[1747527360905,59.8,166.8,166.75,50.0]
[1747527362401,5.9941,166.76,166.75,40.7183]
[1747527362602,65.8141,166.76,166.75,15.20564903]
[1747527362906,5.9958,166.72,166.68,5.9969]
[1747527363608,5.996,166.71,166.68,5.9969]
[1747527363805,59.86,166.72,166.67,59.78]
[1747527364000,119.66,166.72,166.62,65.01285948]
[1747527364201,5.9969,166.69,166.62,65.01285948]
[1747527364404,119.66,166.72,166.62,65.01285948]
[1747527364706,5.9969,166.69,166.62,65.01285948]
[1747527365005,119.66,166.72,166.65,5.9978]
[1747527365206,119.66,166.72,166.62,65.01285948]
[1747527365409,5.9966,166.7,166.62,65.01285948]
[1747527365604,119.66,166.72,166.65,5.9978]
[1747527365811,59.8,166.72,166.62,65.01285948]
[1747527366010,65.896,166.71,166.62,65.01285948]
[1747527366410,5.9963,166.7,166.62,65.01285948]
[1747527366911,59.9,166.71,166.65,5.9979]